Cogmind - Beta 14 @@@ ROGUE MODE // 2024.10.06 @ 14:04:58 Player: Zane Result: Destroyed by EP-0KK(R) with Subdweller Machine Gun Performance ------------- Evolutions (0) 0 Regions Visited (3) 600 Robots Destroyed (22) 110 Value Destroyed (438) 438 Prototype IDs (0) 0 Alien Tech Used (0) 0 Bonus (8) 8 TOTAL SCORE: 1156 Bonus ------- High Alert Combat Kills 8 Cogmind --------- Core Integrity 0/250 Matter 211/300 Energy 121/125 System Corruption 2% Temperature Cool (0) Movement Treading (160) Location -10/Subcaves Parts ------- > --- POWER (1) -------- Light Ion Engine > --- PROPULSION (2) --- Light Treads Light Treads > --- UTILITY (2) ------ Small Storage Unit Hacking Suite > --- WEAPON (2) ------- Slug Cannon Grenade Launcher > --- INVENTORY (8) ---- Light Ion Engine Light Ion Engine Aluminum Leg Medium Laser Light Assault Rifle Battle Cannon Flamer Peak State ------------ > --- POWER ------------ Subdweller Power Source > --- PROPULSION ------- Light Treads Light Treads > --- UTILITY ---------- Small Storage Unit Hacking Suite > --- WEAPON ----------- Slug Cannon Grenade Launcher > --- INVENTORY -------- Light Ion Engine Light Ion Engine Light Ion Engine Aluminum Leg Medium Laser Light Assault Rifle Light Assault Rifle Flamer [Rating: 13] Favorites ----------- Power Light Ion Engine Engine Light Ion Engine Propulsion Aluminum Leg Treads Light Treads Leg Aluminum Leg Utility Small Storage Unit Storage Small Storage Unit Hackware Hacking Suite Weapon Slug Cannon Energy Gun Medium Laser Ballistic Gun Assault Rifle Ballistic Cannon Slug Cannon Launcher Grenade Launcher Build | -11 -10 -10 -10 ------- Run | Yrd Mat Min Sub Slots Evolved . | . . . . Power . | . . . . Propulsion . | . . . . Utility . | . . . . Weapon . | . . . . Parts Attached 15 | 6 1 3 5 Power 5 | 1 . 2 2 Engine 5 | 1 . 2 2 Core . | . . . . Reactor . | . . . . Propulsion 4 | 2 . . 2 Treads 2 | . . . 2 Leg 2 | 2 . . . Wheel . | . . . . Hover . | . . . . Flight . | . . . . Utility 2 | 1 1 . . Device . | . . . . Storage 1 | 1 . . . Processor . | . . . . Hackware 1 | . 1 . . Protection . | . . . . Artifact . | . . . . Weapon 4 | 2 . 1 1 Energy Gun 1 | 1 . . . Energy Cannon . | . . . . Ballistic Gun 1 | 1 . . . Ballistic Cannon 1 | . . 1 . Launcher 1 | . . . 1 Special Weapon . | . . . . Impact Weapon . | . . . . Slashing Weapon . | . . . . Piercing Weapon . | . . . . Special Melee Weapon . | . . . . Unidentified Prototypes . | . . . . Parts Lost 2 | . . . 2 Power . | . . . . Propulsion 1 | . . . 1 Utility . | . . . . Weapon 1 | . . . 1 Highest Loss Streak 2 | . . . 2 To Critical Strikes . | . . . . Average Slot Usage (%) 98 | . 94 100 99 Engine 14 | . 14 14 14 Treads 14 | . . . 25 Leg 13 | . 28 28 1 Storage 14 | . 14 14 14 Hackware 12 | . 9 14 14 Energy Gun 3 | . 14 1 . Ballistic Gun 6 | . 14 14 . Ballistic Cannon 10 | . . 12 14 Launcher 7 | . . . 13 Peak Build Rating 13 | 6 9 12 13 Average Rating 10 | 4 7 11 12 On Entrance 6 | . 6 9 12 Naked Turns . | . . . . Heaviest Build 20 | 14 14 19 20 Greatest Support 40 | 20 20 20 40 Greatest Overweight (x) 4 | 4 . . 1 Average Overweight (x) . | . . . . Largest Inventory Capacity 8 | 8 8 8 8 Average Capacity 7 | 7 8 8 8 Most Carried 8 | 4 8 8 8 Average Carried 6 | 2 4 7 7 Final Capacity 8 | 8 8 8 8 Final Carried 8 | 4 8 8 7 Class Distribution -------------------- 100% | Mutant Dominant Class ---------------- Mutant | -10/Materials Mutant | -10/Mines Mutant | -10/Subcaves Resources | -11 -10 -10 -10 ----------- Run | Yrd Mat Min Sub Matter Collected 800 | 213 106 143 338 Remotely . | . . . . Salvage Created 376 | . 184 98 94 Parts 39 | . 16 15 8 Haulers Intercepted . | . . . . Recyclers Shooed 3 | . 1 2 . Parts Field Recycled . | . . . . Retrieved Matter . | . . . . Parts Self-Destructed 7 | . . . 7 Prevented . | . . . . Kills | -11 -10 -10 -10 ------- Run | Yrd Mat Min Sub Combat Hostiles Destroyed 21 | . 7 10 4 Melee 1 | . . 1 . Guns 12 | . 7 5 . Cannons 8 | . . 4 4 Classes Destroyed 4 | . 3 . 1 Operator 1 | . 1 . . Swarmer 14 | . 5 9 . Grunt 3 | . 2 1 . Subdweller 4 | . . . 4 Best Kill Streak 3 | . 3 3 2 Combat Bots Only 3 | . 3 3 2 Max Kills in Single Turn 1 | . 1 1 1 Gunslinging . | . . . . Exploded . | . . . . Melee 1 | . . 1 . Uniques/NPCs Destroyed . | . . . . Combat | -11 -10 -10 -10 -------- Run | Yrd Mat Min Sub Hostile Shots Fired 121 | . 27 65 29 Missed 39 | . 9 18 12 Damage Taken 1121 | . 156 408 557 Core 265 | . 30 76 159 Absorbed by Shields . | . . . . Core Remaining (%) 100 | 100 . . . Volleys Fired 78 | . 17 26 35 Largest 2 | . 2 2 2 Hottest 78 | . 70 68 78 Shots Fired 126 | . 34 52 40 Gun 63 | . 34 26 3 Cannon 61 | . . 26 35 Launcher 2 | . . . 2 Special . | . . . . Kinetic 107 | . 17 52 38 Thermal 17 | . 17 . . Explosive 2 | . . . 2 Electromagnetic . | . . . . Robot Hit Streak 8 | . 8 7 8 Robot Miss Streak 5 | . 2 5 4 Penetration Max . | . . . . Secondary Targets . | . . . . Shots Hit Robots 66 | . 21 24 21 Core Hits 28 | . 11 11 6 Critical Kills 2 | . . 1 1 Critical Parts Destroyed 5 | . . 4 1 Critical Strikes 8 | . . 5 3 Destroy 8 | . . 5 3 Melee Attacks . | . . . . Impact . | . . . . Slashing . | . . . . Piercing . | . . . . Sneak Attacks . | . . . . Combat Hostiles . | . . . . Follow-up Attacks . | . . . . Damage Inflicted 1485 | . 261 556 668 Guns 436 | . 260 161 15 Cannons 975 | . . 382 593 Explosions 60 | . . . 60 Melee . | . . . . Ramming 14 | . 1 13 . Kinetic 1310 | . 159 543 608 Thermal 101 | . 101 . . Explosive 60 | . . . 60 Electromagnetic . | . . . . Impact . | . . . . Slashing . | . . . . Piercing . | . . . . Highest Corruption 2 | . 2 2 2 Average Corruption 2 | . 2 2 2 Corruption Purged . | . . . . Corruption Blocked . | . . . . Effects 17 | . 1 6 10 Message Errors 5 | . 1 1 3 Matter Fused 5 | . . 1 4 Heat Flow Errors 2 | . . . 2 Energy Discharges 2 | . . 2 . Data Loss (minor) 1 | . . 1 . Data Loss (major) 2 | . . 1 1 Overload Shots . | . . . . Overflow Damage 14 | . . 14 . Projectiles 14 | . . 14 . Explosions . | . . . . Melee . | . . . . Knockbacks 10 | . . 7 3 Impact . | . . . . Kinetic 10 | . . 7 3 Secondary . | . . . . Self-Inflicted Damage 40 | . . . 40 Shots 1 | . . . 1 Rammed . | . . . . Targets Rammed 6 | . 1 5 . Kicked 6 | . 1 5 . Crushed . | . . . . Highest Temperature 222 | . 90 54 222 Average Temperature 29 | . 27 24 100 Received Heat Transfer 114 | . 36 18 60 Siege Activations . | . . . . Robots Corrupted . | . . . . Combat Hostiles . | . . . . Parts Fried . | . . . . Impact Corruptions . | . . . . Robots Melted . | . . . . Combat Hostiles . | . . . . Parts Melted . | . . . . Heat Transferred 296 | . 296 . . Parts Sabotaged . | . . . . Parts Stolen . | . . . . Parts Stripped . | . . . . Power Chain Reactions . | . . . . Alert | -11 -10 -10 -10 ------- Run | Yrd Mat Min Sub Peak Influence 436 | . 245 436 . Initial 95 | . . 95 . Average 168 | . 125 237 . Maximum Alert Level 2 | . 1 2 . Low Security (%) 63 | 100 71 49 . Level 1 28 | . 28 32 . Level 2 8 | . . 17 . Level 3 . | . . . . Level 4 . | . . . . Level 5 . | . . . . High Security . | . . . . Max Security . | . . . . Squads Dispatched 2 | . 2 . . Investigation 1 | . 1 . . Extermination . | . . . . Reinforcement 1 | . 1 . . Assault . | . . . . Garrison . | . . . . Intercept . | . . . . Searches Triggered . | . . . . Construction Impeded . | . . . . Haulers Reinforced . | . . . . Active Scanning Responses . | . . . . Cargo Convoy Interrupts . | . . . . Stealth | -11 -10 -10 -10 --------- Run | Yrd Mat Min Sub Distress Signals 3 | . 3 . . Communications Jammed . | . . . . Distress Signals . | . . . . Times Spotted 31 | . 12 14 5 Peak Tracking Total 4 | . 4 4 2 Tactical Retreats 5 | . 2 3 . Traps | -11 -10 -10 -10 ------- Run | Yrd Mat Min Sub Traps Triggered 5 | . 2 . 3 Indirectly . | . . . . Trap Hack Attempts . | . . . . Triggered . | . . . . Disarmed . | . . . . Reprogrammed . | . . . . Reused . | . . . . Traps Extracted . | . . . . Installed . | . . . . Triggered . | . . . . Machines | -11 -10 -10 -10 ---------- Run | Yrd Mat Min Sub Machines Disabled 2 | . . 2 . Max in Single Turn 1 | . . 1 . Machines Repaired . | . . . . Machines Dismantled . | . . . . Machines Sabotaged . | . . . . Overloaded Fab Kills . | . . . . Hacking | -11 -10 -10 -10 --------- Run | Yrd Mat Min Sub Machines Accessed 6 | . 4 1 1 Terminals 5 | . 4 1 . Fabricators . | . . . . Repair Stations . | . . . . Recycling Units . | . . . . Scanalyzers . | . . . . Garrison Access . | . . . . Total Hacks 15 | . 6 4 5 Successful 9 | . 2 2 5 Failed 6 | . 4 2 . Catastrophic 2 | . 2 . . Database Lockouts . | . . . . Manual 8 | . 4 4 . Terminals 10 | . 6 4 . Fabricators . | . . . . Repair Stations . | . . . . Recycling Units . | . . . . Scanalyzers . | . . . . Garrison Access . | . . . . Terminal Hacks 9 | . 2 2 5 Record 5 | . . . 5 Level Access Points 1 | . . 1 . Branch Access Points 1 | . . 1 . Zone Layout 2 | . 2 . . Fabricator Hacks . | . . . . Repair Station Hacks . | . . . . Recycling Unit Hacks . | . . . . Scanalyzer . | . . . . Garrison Access Hacks . | . . . . Unauthorized Hacks . | . . . . Terminals . | . . . . Fabricators . | . . . . Repair Stations . | . . . . Recycling Units . | . . . . Scanalyzers . | . . . . Garrison Access . | . . . . Data Cores Recovered . | . . . . Used . | . . . . Hacking Detections 5 | . 4 1 . Full Trace Events . | . . . . Feedback Events . | . . . . Feedback Blocked . | . . . . Robot Schematics Acquired . | . . . . Robots Built . | . . . . Authchips . | . . . . Time . | . . . . Total Robot Build Rating . | . . . . Part Schematics Acquired . | . . . . Parts Built . | . . . . Authchips . | . . . . Time . | . . . . Total Part Build Rating . | . . . . Parts Repaired . | . . . . Time . | . . . . Parts Recycled . | . . . . Recycled Matter . | . . . . Retrieved Matter . | . . . . Retrieved Components . | . . . . Parts Scanalyzed . | . . . . Part Schematics Acquired . | . . . . Parts Damaged . | . . . . Bothacking | -11 -10 -10 -10 ------------ Run | Yrd Mat Min Sub Used RIF Installer . | . . . . Robots Hacked . | . . . . Non-combat . | . . . . Combat . | . . . . Robot Hacks Applied . | . . . . Relay Couplers Released . | . . . . Fabnet Peak Effective % . | . . . . Robots Rewired . | . . . . Allies Hacked . | . . . . Hacks Repelled . | . . . . Allies | -11 -10 -10 -10 -------- Run | Yrd Mat Min Sub Total Allies . | . . . . Largest Group . | . . . . Highest-Rated Group . | . . . . Highest-Rated Ally . | . . . . Total Orders . | . . . . Ally Attacks . | . . . . Total Damage . | . . . . Kills . | . . . . Allies Corrupted . | . . . . Allies Melted . | . . . . Intel | -11 -10 -10 -10 ------- Run | Yrd Mat Min Sub Robot Analysis Total . | . . . . Derelict Logs Recovered 2 | . . . 2 Drone Launches . | . . . . Drone Recoveries . | . . . . Exploration | -11 -10 -10 -10 ------------- Run | Yrd Mat Min Sub Turns Passed 1514 | 69 310 359 776 Spaces Moved 885 | 44 199 217 425 Core 20 | 20 . . . Treads 398 | . . . 398 Legs 467 | 24 199 217 27 Wheels . | . . . . Hover . | . . . . Flight . | . . . . Fastest Speed 50 | 50 120 120 120 Average Speed 138 | 128 120 120 157 Slowest Speed 250 | 250 120 120 190 Overloaded Moves . | . . . . Propulsion Burnouts . | . . . . Robots Hopped . | . . . . Cave-ins Triggered . | . . . . Exploration Rate (%) 31 | 3 46 39 36 Regions Visited 3 Branch Regions 2 Pre-discovered Areas 2 | . . . 2 Known Exits Taken . | . . . . Unknown Exits Taken 3 | 1 1 1 . Scrap Searched 2 | . . . 2 Spaces Dug . | . . . . Terrain Destroyed 20 | . . 7 13 Melee . | . . . . Projectile 12 | . . 7 5 AOE 8 | . . . 8 Terrain Rammed . | . . . . Walls Destroyed . | . . . . Machines Disabled . | . . . . Actions | -11 -10 -10 -10 --------- Run | Yrd Mat Min Sub Total 1040 | 53 235 266 486 Wait 37 | . 14 7 16 Move 882 | 43 198 216 425 Hop . | . . . . Pick Up 14 | 4 4 4 2 Fast Attach 8 | 6 1 . 1 Attach 1 | . . . 1 Detach . | . . . . Swap 6 | . . 3 3 Drop 8 | . . 5 3 Fire 78 | . 17 26 35 Melee . | . . . . Ram . | . . . . Kick 6 | . 1 5 . Crush . | . . . . Escape Stasis . | . . . . Rewire . | . . . . Trap . | . . . . Miscellaneous . | . . . . Route ------- -11/Scrapyard -10/Materials (discovered 2 exits: *Mat / *Min) -10/Mines (discovered 3 exits: Mat x2 / *Sub) -10/Subcaves (discovered 3 exits: Mat x2 / Rec) History --------- Turn | Location | Event 2 | -11/Scrapyard | Met Revision 17 28 | -11/Scrapyard | Discovered new exit (range 16) 70 | -11/Scrapyard | Entered Materials 261 | -10/Materials | Discovered new exit (range 16) 302 | -10/Materials | Build established: Mutant 359 | -10/Materials | Discovered new exit (range 11) 380 | -10/Materials | Entered Mines 416 | -10/Mines | A weapon hastily lodged in a ceiling crevice suddenly fell to the ground 507 | -10/Mines | Identified exit to Materials 642 | -10/Mines | Excavation squad dispatched 642 | -10/Mines | A large section of the Mines collapsed 733 | -10/Mines | Discovered new exit (range 6) 739 | -10/Mines | Entered Subcaves 741 | -10/Subcaves | Learned Materials terminal intel 902 | -10/Subcaves | Learned Materials stockpile data 924 | -10/Subcaves | Core integrity fell below 50% 1149 | -10/Subcaves | Learned location of Zion (-6) 1149 | -10/Subcaves | Met a Zionite searching for "candidates" 1172 | -10/Subcaves | Shifting Twisted Machinery released Sub. Beam Cannon 1316 | -10/Subcaves | Visited Clippyterm 1321 | -10/Subcaves | Identified exit to Materials 1321 | -10/Subcaves | Identified exit to Recycling 1321 | -10/Subcaves | Learned location of Deep Caves (-6) 1488 | -10/Subcaves | A swath of the cavern ceiling suddenly collapsed 1504 | -10/Subcaves | Core integrity fell below 20% 1515 | -10/Subcaves | Destroyed by EP-0KK(R) with Subdweller Machine Gun Last Messages --------------- 01335_ Acquired 13 matter. 01357_ Acquired 46 matter. 01367_ Sub. Power Source shoots sparks and powers down. 01369_ Dropped Broken Sub. Power Source. 01374_ System corrupted: Heat flow error (+260). 01457_ Dropped Lgt. Assault Rifle. 01461_ Acquired Battle Cannon. 01469_ EP-0KK(R): "SUBMAD!" 01487_ System corrupted: Matter fused (-10). 01488_ EP-0KK(R) crushed by falling debris. A swath of the cavern ceiling suddenly collapses. [Achievement: Let's See Who's Tougher] 01507_ EP-0KK(R) suffers critical hit (Destroy). 01507_ Destroyed Scrap Shield. 01510_ System corrupted: Matter fused (-9). 01511_ EP-0KK(R) suffers critical hit (Destroy). 01511_ Destroyed Sub. Monowheel. 01511_ EP-0KK(R) knocked back. Map ----- +----------------------------------------------------+ | # #?????### # #???## # ## ##### | | # #?##### #? ##?## ## ### #? #?## ## | | # ### ## #?# ### ### ### ### #? | | # * #### ## ### ## ## #?? | | # ## ## ### #?? | | # ## ] ### #?# | | ## " #?# "" ### | | ## # " ######?# "" ## | | ### ##### "" "#?????# "" ## | | ## = #???#""" ""#????# ######### ## | | # =] ##??###"" "##???## ????????# | | ## #????##"" ###??##????????## ^ | | #### ## #?????## " #????????????## | | ###?## ## ""#??????##" ##????????????# | | ###### "##??######## ##????????????# | | ### ""#?## ##?###????????????# #### | | #####[ ### "########??????????# ???? | | ##???## # #""#;""""#??????????# ???? | | | #????# #"#;;"# " #????????# ???? | | ## #""" ##"# ??????? ###???? | | ### #### ##"; #???????????" ??????? | | #?## #??#"" ###;#??????????" ??????? | | ## #??# ###??# ### #?????????? ???????? | | #### ##??####?????#####; ##???????? ## ???????? | | ???###????????????????#; ##??????????##????????? | | ??????????????????????#% @ "#????????????????????? | | ?????????????????????# "#????????????????????? | | ?????????????????????## R ;;???????????????????? | | ?????????????????????# #% #??????????????????? | | ?????????????????????####? ;##??????????????????? | | ?????????????????????????? ;#??????????????????? | | ??????????????????????????;# #????????????????? | | ??????????????????????????;;; ????????????????###? | | ??????????????????????????; ??????????????????? | | ?????????????????????????? ? ??????????????????? | | ?????????????????????????? ? #?????????????????? | | ??????????????????????????? ? #?????????????????? | | ??????????????????????????? ? #?????????????????? | | ??????????????????????????? ?? ?????????????????? | | ??????????????????????????? ????????????????????? | | ?????????????????????????????????????????????????? | | ?????????????????????????????????????????????????? | | ?????????????????????????????????????????????????? | | ?????????????????????????????????????????????????? | | ?????????????????????????????????????????????????? | | ?????????????????????????????????????????????????? | | ?????????????????????????????????????????????????? | | ?????????????????????????????????????????????????? | | ?????????????????????????????????????????????????? | | ?????????????????????????????????????????????????? | +----------------------------------------------------+ Best States ------------- Heat Dissipation 25 Energy Generation 15 Energy Capacity 250 Matter Stores 300 Matter Capacity 300 Sight Range 16 Terrain Scan Density 10 Evasion (%) 55 Recoil Reduction 2 Offensive Hacking 10 Item Schematics ----------------- None Robot Schematics ------------------ None Fabricated ------------ Nothing Alien Tech Used ----------------- None Achievements -------------- Let's See Who's Tougher Challenges ------------ None Game ------ Seed SpreadDeuteriumImmobilizer Manual? 0 Play Time 00:14:33 Cumulative 15.4 hours Start 2024.10.06 @ 13:48:59 End 2024.10.06 @ 14:04:58 Sessions 1 Manual Loads 0 Difficulty Rogue Special Mode None Game No. 20 Rogue 20 Adventurer 0 Explorer 0 Win Type - Total 0 Types 0/0/0/0/0/0/0/0/0 Lore% 15 Gallery% 25 Achievement% 21 Wizard Run 0 Options --------- Layout 1 ASCII 0 Keyboard 0 Movement Numpad Keybinds 0 Fullscreen 1 Font 24/Smallcaps Map View 50x35 Zoom Use 0% Tactical HUD 1 Map Filters NONE Filters NONE Steam 1 RUN: b11e8bea-ab05-4dfa-9163-06bd32f9b3f8